bitfinex/quotes_BTCUSD_20240815
["timestamp","ask_amount","ask_price","bid_price","bid_amount"]
[1723684008009,0.000826,58951.0,58950.0,0.67187629]
[1723684008244,0.000826,58951.0,58950.0,0.33260629]
[1723684008651,0.000826,58951.0,58950.0,0.67187629]
[1723684008892,0.000826,58951.0,58950.0,0.33260629]
[1723684009288,0.000826,58951.0,58950.0,0.67187629]
[1723684009490,0.000826,58951.0,58950.0,0.33260629]
[1723684009697,0.000826,58951.0,58950.0,0.67187629]
[1723684010572,0.000826,58951.0,58950.0,1.01114629]
[1723684010979,0.000826,58951.0,58950.0,1.09204629]
[1723684011473,0.000826,58951.0,58950.0,0.75277629]
[1723684011663,0.000826,58951.0,58950.0,0.16297129]
[1723684011875,0.000826,58951.0,58950.0,0.33260629]
[1723684012070,0.00838232,58951.0,58950.0,0.33260629]
[1723684012295,0.000826,58951.0,58950.0,0.67187629]
[1723684012570,0.00838232,58951.0,58950.0,1.01114629]
[1723684012775,0.000826,58951.0,58950.0,0.67187629]
[1723684013765,0.000826,58951.0,58950.0,1.42731629]
[1723684018269,0.000826,58951.0,58950.0,1.08804629]
[1723684018633,0.000826,58951.0,58950.0,1.01114629]
[1723684019277,0.000826,58951.0,58950.0,0.67187629]
[1723684019488,0.000826,58951.0,58946.0,0.0009086]
[1723684019809,0.924717,58947.0,58946.0,0.0009086]
[1723684020004,1.01803445,58947.0,58946.0,0.0009086]
[1723684020219,1.02565032,58947.0,58946.0,0.0009086]
[1723684020429,1.42593732,58947.0,58946.0,0.0009086]
[1723684020644,1.59553482,58947.0,58946.0,0.0009086]
[1723684020850,1.4940005,58947.0,58946.0,0.0009086]
[1723684021268,1.52857447,58947.0,58946.0,0.0009086]
[1723684021614,1.68088249,58947.0,58946.0,0.0009086]
[1723684021791,1.68088099,58947.0,58946.0,0.0009086]
[1723684022018,1.69096462,58947.0,58946.0,0.0009086]
[1723684022220,1.690967,58947.0,58946.0,0.0009086]
[1723684022583,1.82153938,58947.0,58946.0,0.0009086]
[1723684022776,1.82157732,58947.0,58946.0,0.0009086]
[1723684022993,1.68515862,58947.0,58946.0,0.0009086]
[1723684023402,3.71687347,58947.0,58946.0,0.0009086]
[1723684023575,3.71687347,58947.0,58916.0,0.178806]
[1723684023576,0.929507,58920.0,58919.0,0.48891388]
[1723684023780,1.07789929,58920.0,58919.0,0.48891388]
[1723684023986,1.07789929,58920.0,58916.0,0.009075]
[1723684023987,0.50919,58917.0,58916.0,0.009075]
[1723684024192,0.92479353,58917.0,58916.0,0.009075]
[1723684024409,0.51669097,58917.0,58916.0,0.009075]
[1723684024953,0.85615097,58917.0,58916.0,0.009075]
[1723684025155,0.51669097,58917.0,58916.0,0.009075]
[1723684026262,0.00750097,58917.0,58916.0,0.34177929]
[1723684026496,0.00750097,58917.0,58916.0,0.97334529]
[1723684026727,0.94580489,58930.0,58920.0,0.401639]
[1723684026927,0.5557,58930.0,58920.0,0.0622]
[1723684027058,0.1697,58928.0,58923.0,0.169711]
[1723684027262,0.34668259,58929.0,58922.0,0.33943]
[1723684027461,0.339369,58933.0,58922.0,0.16297129]
[1723684027694,0.339369,58933.0,58921.0,0.2091]
[1723684027695,0.00729059,58928.0,58927.0,0.931505]
[1723684027894,0.05071889,58943.0,58934.0,0.0622]
[1723684028102,0.07614353,58944.0,58935.0,0.339355]
[1723684028103,0.05071889,58944.0,58935.0,0.339355]
[1723684028343,0.00825629,58942.0,58940.0,0.169663]
[1723684028477,0.169655,58943.0,58938.0,0.169667]
[1723684028675,0.17791829,58941.0,58936.0,0.169674]
[1723684028879,0.169665,58940.0,58936.0,0.169674]
[1723684029109,0.169667,58939.0,58935.0,0.252677]
[1723684029350,0.169667,58939.0,58935.0,0.083]
[1723684029557,0.169667,58939.0,58934.0,0.571237]
[1723684029558,0.17798249,58938.0,58934.0,0.231879]
[1723684029713,0.00831249,58938.0,58936.0,0.169674]
[1723684030119,0.169666,58940.0,58936.0,0.169674]
[1723684030360,0.00831249,58937.0,58934.0,0.23188]
[1723684030606,0.169668,58939.0,58935.0,0.169677]
[1723684030803,0.00831249,58936.0,58934.0,0.0622]
[1723684031125,0.00831249,58935.0,58931.0,0.415879]
[1723684031262,0.00831249,58935.0,58934.0,0.169681]
[1723684031463,0.169668,58939.0,58935.0,0.0009086]
[1723684031989,0.00831249,58938.0,58935.0,0.0009086]
[1723684032373,0.17798249,58938.0,58935.0,0.0009086]
[1723684032570,0.00831249,58938.0,58935.0,0.1705846]
[1723684032770,0.00831249,58938.0,58935.0,0.0009086]
[1723684032951,0.589026,58936.0,58935.0,0.0009086]
[1723684033161,0.928377,58936.0,58935.0,0.0009086]
[1723684033567,0.93668949,58936.0,58935.0,0.0009086]
[1723684034013,0.25798749,58936.0,58935.0,0.0009086]
[1723684034216,0.00831249,58936.0,58935.0,0.0009086]
[1723684034412,0.17798749,58936.0,58935.0,0.0009086]
[1723684034618,0.509026,58936.0,58935.0,0.0009086]
[1723684034858,0.51733849,58936.0,58935.0,0.0009086]
[1723684035618,0.85668949,58936.0,58935.0,0.0009086]
[1723684036019,0.51733849,58936.0,58935.0,0.0009086]
[1723684036379,0.17798749,58936.0,58935.0,0.0009086]
[1723684036799,0.51733849,58936.0,58935.0,0.0009086]
[1723684036964,0.85668949,58936.0,58935.0,0.0009086]
[1723684037172,0.51733849,58936.0,58935.0,0.0009086]
[1723684037385,0.00831249,58936.0,58935.0,0.0009086]
[1723684037778,0.169675,58936.0,58935.0,0.0009086]
[1723684037977,0.51733849,58936.0,58935.0,0.0009086]
[1723684038994,0.85668949,58936.0,58935.0,0.0009086]
[1723684039164,0.94235734,58936.0,58935.0,0.0009086]
[1723684040278,1.59057963,58936.0,58935.0,0.0009086]
[1723684040573,2.02886399,58936.0,58935.0,0.0009086]
[1723684040793,2.10856289,58936.0,58935.0,0.0009086]
[1723684040997,1.53639956,58936.0,58935.0,0.0009086]
[1723684041197,0.90731534,58936.0,58935.0,0.0009086]
[1723684041603,0.85668949,58936.0,58935.0,0.0009086]
[1723684043278,0.85648531,58936.0,58935.0,0.0009086]
[1723684043839,0.00831249,58936.0,58935.0,0.0009086]
[1723684044043,0.509026,58936.0,58935.0,0.0009086]
[1723684044245,0.85668644,58936.0,58935.0,0.0009086]
[1723684047011,0.17798444,58936.0,58935.0,0.0009086]
[1723684047220,0.51733544,58936.0,58935.0,0.0009086]
[1723684047425,0.85668644,58936.0,58935.0,0.0009086]
[1723684047882,0.17798444,58936.0,58935.0,0.0009086]
[1723684048080,0.51733544,58936.0,58935.0,0.0009086]
[1723684048279,0.1809254,58936.0,58935.0,0.0009086]
[1723684048632,0.0112504,58936.0,58935.0,0.2504866]
[1723684048856,0.0112504,58936.0,58935.0,0.5898426]
[1723684049318,0.0112504,58936.0,58935.0,0.2504866]
[1723684050671,0.0112504,58936.0,58935.0,0.0808086]
[1723684051216,0.0112504,58936.0,58935.0,0.2504866]
[1723684056488,0.0112504,58936.0,58935.0,0.5898426]
[1723684057781,0.0112504,58936.0,58935.0,0.9291986]
[1723684057978,0.00830944,58936.0,58935.0,0.9291986]
[1723684058183,0.170484,58942.0,58938.0,0.169669]
[1723684058494,0.00833083,58941.0,58938.0,0.169669]
[1723684058784,0.17799183,58941.0,58938.0,0.169669]
[1723684059011,0.00833083,58941.0,58938.0,0.169669]
[1723684059213,0.00833083,58941.0,58939.0,0.169666]
[1723684059700,0.00833083,58941.0,58938.0,0.169669]
[1723684060577,0.00833083,58941.0,58940.0,0.99432]
[1723684060734,0.00833083,58941.0,58940.0,1.15729129]
[1723684060944,0.000826,58942.0,58941.0,0.931005]
[1723684061168,0.000826,58942.0,58941.0,1.43329829]
[1723684064289,0.000826,58942.0,58941.0,1.83512029]
[1723684064711,0.000826,58942.0,58941.0,1.93512029]
[1723684072276,0.000826,58942.0,58941.0,2.27444229]
[1723684072481,0.000826,58942.0,58941.0,2.27644229]
[1723684076019,0.000826,58951.0,58950.0,0.169635]
[1723684076219,0.000826,58951.0,58950.0,2.46404629]
[1723684076442,0.000826,58951.0,58950.0,3.15258629]
[1723684076647,0.000826,58957.0,58956.0,2.175462]
[1723684076863,0.000826,58957.0,58956.0,3.3090805]
[1723684077694,0.000826,58957.0,58956.0,3.3110805]
[1723684078118,0.000826,58957.0,58956.0,3.3090805]
[1723684078546,0.000826,58957.0,58956.0,3.3110805]
[1723684078728,0.000826,58957.0,58956.0,3.3090805]
[1723684080714,0.000826,58957.0,58956.0,3.3110805]
[1723684081128,0.000826,58957.0,58956.0,3.31914319]
[1723684082411,0.000826,58957.0,58956.0,3.32114319]
[1723684082848,0.000826,58957.0,58956.0,4.02114319]
[1723684084288,0.000826,58957.0,58956.0,4.01914319]
[1723684085911,0.000826,58957.0,58956.0,3.31914319]
[1723684087245,0.000826,58957.0,58956.0,4.01914319]
[1723684088616,0.000826,58957.0,58956.0,4.02114319]
[1723684088824,0.000826,58957.0,58956.0,3.32114319]
[1723684089679,0.000826,58957.0,58956.0,3.31914319]
[1723684089884,0.000826,58957.0,58956.0,3.32114319]
[1723684090100,0.000826,58957.0,58956.0,4.02114319]
[1723684092183,0.0787,58979.0,58972.0,0.339144]
[1723684092383,0.0787,58979.0,58978.0,0.717763]
[1723684092584,0.0787,58979.0,58978.0,1.21984329]
[1723684092787,0.0787,58984.0,58983.0,0.16954]
[1723684093008,0.0787,58984.0,58983.0,1.55885129]
[1723684093163,0.0787,58984.0,58983.0,1.21977129]
[1723684094397,0.0644,58988.0,58987.0,0.847642]
[1723684094596,0.0644,58988.0,58987.0,1.01061329]
[1723684095041,0.1443,58988.0,58987.0,1.01061329]
[1723684096730,0.0799,58988.0,58987.0,1.01061329]
[1723684098383,0.0799,58988.0,58987.0,0.67155629]
[1723684098689,0.0799,58988.0,58978.0,0.2091]
[1723684098809,0.00826,58995.0,58980.0,0.339096]
[1723684098810,0.0788,58986.0,58980.0,0.339096]
[1723684099025,0.0788,58984.0,58981.0,0.16297129]
[1723684099219,0.0788,58984.0,58983.0,0.50862]
[1723684099583,0.25542641,58984.0,58981.0,0.16297129]
[1723684099898,0.0788,58983.0,58978.0,0.339107]
[1723684100104,0.248341,58983.0,58979.0,0.169549]
[1723684100299,0.248341,58983.0,58980.0,0.169548]
[1723684100675,0.00708841,58982.0,58980.0,0.169548]
[1723684100875,0.00708841,58982.0,58978.0,0.50207829]
[1723684100876,0.00708841,58982.0,58981.0,0.169546]
[1723684101625,0.00708841,58982.0,58981.0,0.508638]
[1723684102028,0.0788,58983.0,58982.0,0.169543]
[1723684102413,0.08588473,58983.0,58982.0,0.169543]
[1723684103891,0.08588473,58983.0,58981.0,0.169545]
[1723684104435,0.08588473,58983.0,58982.0,0.169543]
[1723684104925,0.08588473,58983.0,58981.0,0.169545]
[1723684105089,0.08588473,58983.0,58982.0,1.01068629]
[1723684105294,0.1436,58987.0,58985.0,0.169532]
[1723684105631,0.00708473,58986.0,58985.0,0.169532]
[1723684106046,0.1436,58987.0,58986.0,0.169531]
[1723684106499,0.1436,58987.0,58985.0,0.169533]
[1723684106500,0.15068473,58987.0,58985.0,0.169533]
[1723684106828,0.08528473,58987.0,58986.0,0.508594]
[1723684107029,0.08528473,58987.0,58986.0,1.01062829]
[1723684107446,0.0782,58987.0,58986.0,1.01062829]
[1723684107639,0.08528473,58987.0,58986.0,1.01062829]
[1723684107907,0.0782,58987.0,58986.0,1.01062829]
[1723684108092,0.08528473,58987.0,58986.0,0.67156529]
[1723684109294,0.08528473,58987.0,58986.0,0.16297129]
[1723684109654,0.08528473,58987.0,58986.0,0.33250229]
[1723684114539,0.08528473,58987.0,58986.0,0.16297129]
[1723684114734,0.08528473,58987.0,58986.0,0.33250229]
[1723684114988,0.339064,58986.0,58978.0,0.339108]
[1723684115202,0.339064,58986.0,58975.0,0.339122]
[1723684115203,0.08528473,58987.0,58979.0,0.16297129]
[1723684115405,0.0782,58987.0,58980.0,0.169547]
[1723684115556,0.169541,58983.0,58981.0,0.16297129]
[1723684115760,0.00708473,58986.0,58975.0,0.339122]
[1723684115962,0.00708473,58986.0,58963.0,0.0826]
[1723684115963,0.0759,58975.0,58963.0,0.0826]
[1723684116161,0.0759,58975.0,58972.0,0.48891388]
[1723684116405,0.339096,58981.0,58972.0,0.48891388]
[1723684116406,0.169555,58978.0,58974.0,0.169565]
[1723684116747,0.00710058,58977.0,58974.0,0.169565]
[1723684117252,0.17665758,58977.0,58972.0,0.16297129]
[1723684117608,0.17665758,58977.0,58973.0,0.169568]
[1723684118175,0.16956,58976.0,58973.0,0.169568]
[1723684118383,0.17662794,58976.0,58973.0,0.169568]
[1723684118875,0.0779,58975.0,58967.0,0.33917]
[1723684119072,0.169572,58972.0,58969.0,0.169579]
[1723684119396,0.169582,58969.0,58964.0,0.339187]
[1723684119677,0.34622169,58971.0,58966.0,0.169588]
[1723684119874,0.00706777,58968.0,58967.0,0.16297129]
[1723684120121,0.339156,58970.0,58967.0,0.16297129]
[1723684120326,0.00706777,58968.0,58963.0,0.339194]
[1723684120536,0.339156,58970.0,58964.0,0.26297129]
[1723684120751,0.50881,58961.0,58957.0,0.0009064]
[1723684120953,0.250912,58958.0,58957.0,0.0009064]
[1723684121156,0.0813,58958.0,58957.0,0.0009064]
[1723684121373,0.339198,58963.0,58957.0,0.0009064]
[1723684121374,0.169611,58959.0,58957.0,0.0009064]
[1723684121591,0.17667454,58958.0,58957.0,0.0009064]
[1723684121788,0.51589854,58958.0,58957.0,0.0009064]
[1723684122423,0.00706254,58958.0,58957.0,0.0009064]
[1723684122605,0.13303295,58961.0,58957.0,0.0009064]
[1723684122606,0.0824,58961.0,58957.0,0.0009064]
[1723684122813,0.00877178,58958.0,58957.0,0.0009064]
[1723684123017,0.0824,58961.0,58957.0,0.0009064]
[1723684123216,0.00877178,58958.0,58957.0,0.0009064]
[1723684123447,0.169612,58958.0,58957.0,0.0009064]
[1723684123667,0.00877178,58958.0,58957.0,0.33349269]
[1723684123884,0.00877178,58958.0,58957.0,1.14775269]
[1723684124081,0.07594943,58966.0,58957.0,1.14775269]
[1723684124082,0.169595,58964.0,58960.0,0.169606]
[1723684124321,0.169595,58964.0,58961.0,0.16297129]
[1723684124530,0.64159395,58967.0,58961.0,0.16297129]
[1723684124747,0.13283295,58967.0,58961.0,0.16297129]
[1723684124952,0.0822,58967.0,58964.0,0.169593]
[1723684125185,0.0822,58967.0,58965.0,0.16959]
[1723684125401,0.0613,58969.0,58965.0,0.16959]
[1723684125609,0.16959,58966.0,58964.0,0.16297129]
[1723684125815,0.169592,58965.0,58964.0,0.16297129]
[1723684126497,0.169589,58966.0,58964.0,0.16297129]
[1723684126888,0.339173,58967.0,58963.0,0.03]
[1723684126889,0.508785,58964.0,58963.0,0.03]
[1723684127098,0.847975,58964.0,58963.0,0.03]
[1723684127307,1.3134298,58964.0,58963.0,0.03]
[1723684127495,1.4548298,58964.0,58963.0,0.03]
[1723684127701,1.37919795,58964.0,58963.0,0.03]
[1723684127858,1.328565,58964.0,58963.0,0.03]
[1723684128059,1.328565,58964.0,58957.0,0.0009064]
[1723684128060,0.84806,58958.0,58957.0,0.0009064]
[1723684128221,0.99116,58958.0,58957.0,0.0009064]
[1723684128431,1.330384,58958.0,58957.0,0.0009064]
[1723684128632,1.47609532,58958.0,58957.0,0.0009064]
[1723684129036,1.13687132,58958.0,58957.0,0.0009064]
[1723684129491,1.47609532,58958.0,58957.0,0.0009064]
[1723684129896,1.330384,58958.0,58957.0,0.0009064]
[1723684131129,0.99116,58958.0,58957.0,0.0009064]
[1723684131987,0.93541584,58958.0,58957.0,0.0009064]
[1723684132208,0.00865584,58958.0,58957.0,0.0009064]
[1723684132435,0.00865584,58958.0,58957.0,0.5097514]
[1723684132669,0.245001,58962.0,58958.0,0.169611]
[1723684132876,0.169604,58961.0,58957.0,0.0009064]
[1723684133047,0.169604,58961.0,58957.0,0.1705204]
[1723684133455,0.245001,58962.0,58958.0,0.169611]
[1723684133674,0.169604,58961.0,58957.0,0.1705214]
[1723684134359,0.07834003,58962.0,58958.0,0.169611]
[1723684134513,0.17254103,58962.0,58958.0,0.169611]
[1723684134698,0.00294003,58962.0,58958.0,0.16297129]
[1723684134904,0.00294003,58962.0,58961.0,0.169603]
[1723684135106,0.169593,58965.0,58961.0,0.169603]
[1723684135958,0.169595,58964.0,58959.0,0.169606]
[1723684136235,0.169595,58964.0,58960.0,0.169605]
[1723684136892,0.169595,58964.0,58958.0,0.56599529]
[1723684136893,0.169597,58963.0,58959.0,0.169609]
[1723684137339,0.169597,58964.0,58959.0,0.169608]
[1723684137475,0.169598,58963.0,58959.0,0.169608]
[1723684138164,0.16038565,58966.0,58958.0,0.16297129]
[1723684138366,0.169609,58959.0,58957.0,0.0009064]
[1723684138507,0.16038565,58966.0,58957.0,0.0009064]
[1723684138508,0.38729765,58958.0,58957.0,0.0009064]
[1723684138936,0.305812,58958.0,58957.0,0.0009064]
[1723684139092,0.245412,58958.0,58957.0,0.0009064]
[1723684139313,0.169612,58958.0,58957.0,0.0009064]
[1723684139720,0.508836,58958.0,58957.0,0.0009064]
[1723684140560,0.169612,58958.0,58957.0,0.0009064]
[1723684140891,0.508836,58958.0,58957.0,0.0009064]
[1723684141293,0.169612,58958.0,58957.0,0.0009064]
[1723684142087,0.169607,58960.0,58957.0,0.0009064]
[1723684142302,0.339198,58963.0,58957.0,0.0009064]
[1723684142517,0.1696,58962.0,58958.0,0.16961]
[1723684143171,0.339197,58963.0,58958.0,0.16961]
[1723684143369,0.000824,58964.0,58959.0,0.169609]
[1723684143774,0.000824,58964.0,58958.0,0.169611]
[1723684143775,0.169602,58962.0,58958.0,0.169611]
[1723684144762,0.339196,58963.0,58958.0,0.169611]
[1723684144975,0.169603,58961.0,58958.0,0.169611]
[1723684145171,0.169603,58961.0,58957.0,0.1705214]
[1723684146184,0.169612,58958.0,58957.0,0.0009064]
[1723684146441,0.000824,58964.0,58957.0,0.0009064]
[1723684146643,0.16961,58959.0,58957.0,0.0009064]
[1723684147165,0.0086297,58958.0,58957.0,0.0009064]
[1723684147582,0.0086297,58958.0,58957.0,1.09015269]
[1723684147782,0.000824,58964.0,58957.0,0.24207769]
[1723684147987,0.000824,58964.0,58963.0,0.647992]
[1723684148201,0.000824,58964.0,58963.0,1.15015829]
[1723684149406,0.000824,58964.0,58963.0,0.81096329]
[1723684150433,0.05141779,58987.0,58963.0,1.78435329]
[1723684150682,0.078824,58987.0,58984.0,0.169536]
[1723684150910,0.000824,58987.0,58983.0,0.169538]
[1723684151108,0.000824,58987.0,58981.0,0.339092]
[1723684151109,0.00868975,58986.0,58981.0,0.169545]
[1723684151307,0.00868975,58986.0,58983.0,0.16297129]
[1723684151510,0.00868975,58986.0,58985.0,0.169534]
[1723684154846,0.00868975,58986.0,58983.0,0.67158729]
[1723684155046,0.17822175,58986.0,58982.0,0.169541]
[1723684155381,0.00868975,58986.0,58985.0,0.169534]
[1723684155909,0.00868975,58986.0,58983.0,0.169538]
[1723684156108,0.00868975,58986.0,58984.0,0.169537]
[1723684156269,0.00868975,58986.0,58984.0,0.199537]
[1723684157828,0.00868975,58986.0,58985.0,0.169534]
[1723684158225,0.00868975,58986.0,58984.0,0.03]
[1723684159202,0.00868975,58986.0,58985.0,0.508603]
[1723684159741,0.000824,58987.0,58986.0,0.169531]
[1723684159941,0.00955396,58987.0,58986.0,0.169531]
[1723684160144,0.00955396,58987.0,58984.0,0.03]
[1723684160342,0.17908296,58987.0,58984.0,0.03]
[1723684160769,0.169532,58986.0,58984.0,0.03]
[1723684161180,0.00872996,58985.0,58984.0,0.03]
[1723684161582,0.17826396,58985.0,58984.0,0.03]
[1723684161780,0.59403296,58985.0,58984.0,0.03]
[1723684162008,1.43629302,58985.0,58984.0,0.03]
[1723684162209,0.169571,58973.0,58969.0,0.16958]
[1723684162387,0.24626,58976.0,58971.0,0.169573]
[1723684162583,0.169563,58975.0,58970.0,0.33254729]
[1723684162811,0.169568,58974.0,58970.0,0.16297129]
[1723684163176,0.00708906,58973.0,58970.0,0.16297129]
[1723684164408,0.339145,58972.0,58964.0,0.339187]
[1723684164610,0.33915,58971.0,58962.0,0.480899]
[1723684164811,0.339148,58972.0,58965.0,0.16959]
[1723684165020,0.169581,58969.0,58965.0,0.16959]
[1723684165219,0.339148,58972.0,58965.0,0.16959]
[1723684165421,0.00708906,58968.0,58965.0,0.16959]
[1723684165678,0.169584,58968.0,58963.0,0.169596]
[1723684165836,0.00708906,58967.0,58962.0,0.64386729]
[1723684166038,0.00708906,58967.0,58965.0,0.169591]
[1723684166240,0.339131,58975.0,58969.0,0.169579]
[1723684166449,0.16957,58973.0,58969.0,0.169579]
[1723684167357,0.16957,58973.0,58971.0,0.03]
[1723684169041,0.34919812,58977.0,58971.0,0.03]
[1723684169255,0.169562,58976.0,58971.0,0.03]
[1723684169499,0.169562,58976.0,58972.0,0.16957]
[1723684169693,0.169564,58975.0,58971.0,0.03]
[1723684169898,0.169564,58975.0,58971.0,0.199574]
[1723684170298,0.339116,58977.0,58971.0,0.199574]
[1723684170506,0.169559,58977.0,58972.0,0.16297129]
[1723684170680,0.169559,58977.0,58973.0,0.169568]
[1723684170922,0.16955,58980.0,58973.0,0.339133]
[1723684171123,0.169552,58979.0,58974.0,0.169564]
[1723684171238,0.00293921,58978.0,58974.0,0.169564]
[1723684172058,0.51160621,58978.0,58972.0,0.22947129]
[1723684172258,0.34205021,58978.0,58971.0,0.199573]
[1723684172476,0.169572,58972.0,58971.0,0.03]
[1723684172728,0.508716,58972.0,58971.0,0.03]
[1723684172901,0.84786,58972.0,58971.0,0.03]
[1723684173279,0.169572,58972.0,58971.0,0.03]
[1723684173942,0.87886132,58972.0,58971.0,0.03]
[1723684174344,1.35590532,58972.0,58971.0,0.03]
[1723684174489,0.923417,58968.0,58967.0,0.00020414]
[1723684174903,1.262584,58968.0,58967.0,0.00020414]
[1723684175279,0.923417,58968.0,58967.0,0.00020414]
[1723684175533,0.05064777,58969.0,58968.0,0.0665]
[1723684175800,0.05064777,58973.0,58967.0,0.00020414]
[1723684176019,0.16958,58970.0,58967.0,0.00020414]
[1723684176348,0.169582,58969.0,58967.0,0.00020414]
[1723684176802,0.00876393,58968.0,58967.0,0.00020414]
[1723684177229,0.16958,58969.0,58967.0,0.00020414]
[1723684177432,0.339152,58971.0,58967.0,0.00020414]
[1723684177636,0.00876393,58968.0,58967.0,0.00020414]
[1723684177840,0.169578,58970.0,58967.0,0.00020414]
[1723684177976,0.00876393,58968.0,58967.0,0.00020414]
[1723684178185,0.16958,58969.0,58967.0,0.00020414]
[1723684178399,0.339152,58971.0,58967.0,0.00020414]
[1723684178400,0.17834693,58968.0,58967.0,0.00020414]
[1723684178601,0.51751393,58968.0,58967.0,0.00020414]
[1723684178800,0.17834693,58968.0,58967.0,0.00020414]
[1723684179006,0.00876393,58968.0,58967.0,0.00020414]
[1723684179432,0.08148565,58973.0,58967.0,0.24497543]
[1723684179635,0.25105565,58973.0,58969.0,0.169579]
[1723684179861,0.42062465,58973.0,58968.0,0.33255429]
[1723684180075,0.169573,58972.0,58968.0,0.16297129]
[1723684180531,0.169573,58972.0,58968.0,0.33255429]
[1723684180729,0.08148565,58973.0,58968.0,0.33255429]
[1723684180934,0.25105465,58973.0,58969.0,0.0621]
[1723684181323,0.25105465,58973.0,58969.0,0.231679]
[1723684182859,0.22024168,58975.0,58971.0,0.169574]
[1723684183818,0.169566,58974.0,58970.0,0.16297129]
[1723684184022,0.05067768,58976.0,58975.0,0.169563]
[1723684184231,0.05067768,58982.0,58978.0,0.169552]
[1723684184440,0.24555753,58983.0,58978.0,0.1446]
[1723684184441,0.05067768,58983.0,58978.0,0.1446]
[1723684184593,0.05150168,58985.0,58981.0,0.169543]
[1723684184788,0.000824,58985.0,58980.0,0.339097]
[1723684184987,0.000824,58985.0,58984.0,0.169537]
[1723684186476,0.000824,58985.0,58984.0,0.74878329]
[1723684187020,0.000824,58985.0,58984.0,1.14815829]
[1723684187233,0.000824,58985.0,58984.0,0.80908329]
[1723684188812,0.000824,58985.0,58984.0,0.39280829]
[1723684189212,0.00784268,58985.0,58984.0,0.73188329]
[1723684190078,0.00784268,58985.0,58981.0,0.078]
[1723684190320,0.00784268,58985.0,58982.0,0.16297129]
[1723684190524,0.00784268,58985.0,58984.0,0.169537]
[1723684190728,0.00784268,58985.0,58984.0,0.41050829]
[1723684191875,0.00784268,58985.0,58984.0,0.16297129]
[1723684192680,0.17913235,58985.0,58980.0,0.169547]
[1723684192879,0.17913235,58985.0,58980.0,0.33251829]
[1723684192880,0.169537,58984.0,58980.0,0.33251829]
[1723684193534,0.169537,58984.0,58978.0,0.169553]
[1723684193535,0.169543,58982.0,58978.0,0.169553]
[1723684193986,0.000824,58985.0,58982.0,0.169542]
[1723684194255,0.000824,58985.0,58982.0,0.33251329]
[1723684194710,0.25184465,58985.0,58982.0,0.16297129]
[1723684195323,0.169543,58982.0,58977.0,0.378655]
[1723684195454,0.169543,58982.0,58978.0,0.33252429]
[1723684195660,0.16954,58983.0,58978.0,0.33252429]
[1723684196090,0.416376,58984.0,58978.0,0.16297129]
[1723684196091,0.0773,58984.0,58978.0,0.16297129]
[1723684196292,0.05455362,58983.0,58973.0,0.06]
[1723684196565,0.169558,58977.0,58972.0,0.169571]
[1723684196695,0.05067768,58981.0,58972.0,0.169571]
[1723684196696,0.169561,58976.0,58972.0,0.33254229]
[1723684196896,0.339111,58978.0,58972.0,0.33254229]
[1723684196897,0.169554,58978.0,58973.0,0.169567]
[1723684197301,0.339093,58981.0,58972.0,0.16297129]
[1723684197302,0.169558,58977.0,58972.0,0.16297129]
[1723684197476,0.169558,58977.0,58972.0,0.33254229]
[1723684198399,0.169562,58976.0,58972.0,0.16297129]
[1723684199454,0.169562,58976.0,58969.0,0.234879]
[1723684199455,0.169569,58973.0,58969.0,0.234879]
[1723684199699,0.169569,58973.0,58967.0,0.55850279]
[1723684199700,0.0783,58975.0,58967.0,0.00020414]
[1723684199828,0.339151,58971.0,58967.0,0.00020414]
[1723684200043,0.339156,58970.0,58967.0,0.00020414]
[1723684200414,0.169583,58968.0,58967.0,0.00020414]
[1723684200610,0.50875,58968.0,58967.0,0.00020414]
[1723684200760,0.169583,58968.0,58967.0,0.00020414]
[1723684200987,0.169578,58970.0,58967.0,0.00020414]
[1723684201219,0.339139,58973.0,58967.0,0.16979014]
[1723684201425,0.169576,58971.0,58967.0,0.33276143]
[1723684203060,0.183576,58971.0,58967.0,0.33276143]
[1723684203494,0.014,58971.0,58968.0,0.169583]
[1723684204433,0.014,58971.0,58970.0,0.1421]
[1723684205035,0.169567,58974.0,58970.0,0.311677]
[1723684205237,0.169567,58974.0,58970.0,0.47464829]
[1723684205437,0.014,58971.0,58970.0,0.47464829]
[1723684205818,0.169567,58974.0,58970.0,0.47464829]
[1723684206218,0.183567,58974.0,58970.0,0.47464829]
[1723684206739,0.00877019,58973.0,58972.0,0.03]
[1723684206915,0.17833919,58973.0,58972.0,0.03]
[1723684207121,0.59287719,58973.0,58972.0,0.03]
[1723684207369,0.30447749,58973.0,58972.0,0.03]
[1723684207554,0.17833919,58973.0,58972.0,0.03]
[1723684208539,0.02277019,58973.0,58972.0,0.03]
[1723684208746,0.02111855,58973.0,58972.0,0.03]
[1723684210123,0.02111855,58973.0,58972.0,0.199572]
[1723684210323,0.02111855,58973.0,58972.0,0.03]
[1723684210729,0.02111855,58973.0,58972.0,0.199572]
[1723684210933,0.02111855,58973.0,58972.0,0.261172]
[1723684211139,0.02111855,58973.0,58972.0,0.76328729]
[1723684211583,0.02111855,58973.0,58972.0,0.42414329]
[1723684211900,0.02111855,58973.0,58972.0,0.76328729]
[1723684212959,0.02111855,58973.0,58972.0,1.52327529]
[1723684213175,0.014,58973.0,58972.0,1.39323129]
[1723684213403,0.014,58973.0,58972.0,1.18413129]
[1723684215562,0.014,58973.0,58972.0,1.52327529]
[1723684217399,0.014,58973.0,58972.0,1.18413129]
[1723684218314,0.014,58973.0,58972.0,1.52327529]
[1723684218648,0.014,58973.0,58972.0,1.18413129]
[1723684219673,0.014,58973.0,58972.0,0.50584329]
[1723684219871,0.183569,58973.0,58972.0,0.03]
[1723684220099,0.19222285,58973.0,58972.0,0.03]
[1723684223293,0.02265385,58973.0,58972.0,0.03]
[1723684223869,0.53136085,58973.0,58972.0,0.03]
[1723684224390,0.58210372,58973.0,58972.0,0.03]
[1723684225314,0.92124172,58973.0,58972.0,0.03]
[1723684225537,0.87049885,58973.0,58972.0,0.03]
[1723684227593,0.94661316,58973.0,58972.0,0.03]
[1723684229868,1.02641316,58973.0,58972.0,0.03]
[1723684230116,1.05953326,58973.0,58972.0,0.03]
[1723684230441,0.92776,58965.0,58964.0,0.0009064]
[1723684230974,1.14146031,58965.0,58964.0,0.0009064]